bitfinex/quotes_ETHUSD_20260129
["timestamp","ask_amount","ask_price","bid_price","bid_amount"]
[1769723704270,13.01069585,2819.8,2819.0,11.754187]
[1769723706284,13.01069585,2819.8,2819.0,0.006]
[1769723706285,12.27115088,2819.7,2819.0,0.006]
[1769723712103,0.88661914,2819.7,2819.0,11.754187]
[1769723712295,0.88661914,2819.7,2819.0,0.89283799]
[1769723712611,0.001,2819.5,2819.1,11.81606596]
[1769723713097,0.001,2819.5,2819.1,11.748187]
[1769723713272,0.001,2819.5,2819.2,0.006]
[1769723713473,0.001,2819.5,2818.9,11.750187]
[1769723713673,0.001,2819.5,2819.0,0.006]
[1769723715101,0.001,2819.5,2819.0,12.64102532]
[1769723716301,0.001,2819.5,2819.0,11.754187]
[1769723716502,0.001,2819.5,2819.0,12.64101718]
[1769723716902,0.001,2819.5,2819.0,11.754187]
[1769723717203,0.001,2819.5,2819.0,12.64102473]
[1769723717504,0.001,2819.5,2819.0,12.63502473]
[1769723717698,0.001,2819.5,2819.0,11.748187]
[1769723717897,0.001,2819.5,2819.0,12.63502089]
[1769723718204,0.001,2819.5,2819.0,11.748187]
[1769723718406,0.001,2819.5,2819.0,12.63502571]
[1769723718604,0.001,2819.5,2819.1,11.754187]
[1769723721206,0.001,2819.5,2819.1,0.006]
[1769723722489,0.001,2819.5,2819.1,11.754187]
[1769723722816,0.001,2819.5,2819.1,11.748187]
[1769723725821,0.001,2819.5,2819.2,0.006]
[1769723730629,1.14649283,2819.5,2819.2,0.006]
[1769723732403,2.03319296,2819.5,2819.2,0.006]
[1769723732799,13.4871213,2819.5,2818.9,0.002]
[1769723733019,13.4871213,2819.5,2818.5,0.88698451]
[1769723733225,11.45392834,2819.3,2818.5,0.88698451]
[1769723733815,11.45392834,2819.3,2818.7,0.88693329]
[1769723734132,12.94829958,2819.4,2818.5,12.8338003]
[1769723734432,13.83504282,2819.4,2818.5,15.42693213]
[1769723734729,13.8350187,2819.4,2818.6,11.87894834]
[1769723734941,1.12346843,2819.3,2818.6,11.87894834]
[1769723735140,12.36839253,2819.3,2818.5,0.88699662]
[1769723735502,12.36839253,2819.3,2818.7,0.002]
[1769723736042,12.36939253,2819.3,2818.7,0.002]
[1769723736233,1.49594871,2819.2,2818.7,0.002]
[1769723737848,2.3827316,2819.2,2818.7,0.002]
[1769723738867,13.6276557,2819.2,2818.7,0.002]
[1769723739152,13.6276557,2819.2,2818.4,0.002]
[1769723739315,13.6276557,2819.2,2818.2,0.002]
[1769723739515,11.2449241,2819.0,2818.2,0.002]
[1769723741614,0.88687076,2818.9,2818.2,0.002]
[1769723742059,12.13179486,2818.9,2818.2,0.002]
[1769723744036,0.88687076,2818.9,2818.2,0.002]
[1769723744242,0.8868617,2819.0,2818.2,11.88094834]
[1769723744453,0.8868617,2819.0,2818.4,11.87894834]
[1769723745564,12.1317858,2819.0,2818.2,11.88094834]
[1769723746786,12.1317858,2819.0,2818.2,0.002]
[1769723747755,12.1317858,2819.0,2818.6,0.001]
[1769723748087,12.81282634,2818.9,2818.2,0.00100203]
[1769723748291,12.81282634,2818.9,2818.4,0.002]
[1769723749279,0.88690222,2818.8,2818.4,0.002]
[1769723750193,11.2449241,2818.7,2818.2,0.00100203]
[1769723750366,1.72473375,2818.7,2818.2,0.00100203]
[1769723750551,0.88690222,2818.8,2818.2,0.00100203]
[1769723753086,0.88690222,2818.8,2818.2,11.87995037]
[1769723756701,0.88690222,2818.8,2818.2,0.00100203]
[1769723757812,11.60043898,2818.7,2818.2,0.00100203]
[1769723758222,12.48740414,2818.6,2818.2,0.00100203]
[1769723759524,14.09091926,2818.6,2818.2,0.00100203]
[1769723760818,14.09091926,2818.6,2818.4,0.001]
[1769723760998,14.09191926,2818.6,2818.4,0.001]
[1769723762202,14.09191926,2818.6,2818.0,0.00100203]
[1769723765514,14.09191926,2818.6,2817.9,1.0165949]
[1769723765715,11.60043898,2818.4,2817.9,1.0165949]
[1769723766224,0.743,2818.3,2817.9,1e-08]
[1769723766820,0.88709105,2818.2,2817.9,1e-08]
[1769723768223,12.48753003,2818.2,2817.9,1e-08]
[1769723768422,1.04822857,2818.1,2817.9,1e-08]
[1769723769020,0.887154,2818.0,2817.9,1e-08]
[1769723771027,0.887154,2818.0,2817.7,0.002]
[1769723773036,0.88704865,2818.4,2818.0,11.81163162]
[1769723774616,0.88704865,2818.4,2817.9,0.002]
[1769723775032,3.54806212,2818.5,2817.9,0.002]
[1769723775204,5.5807916,2818.5,2817.9,0.002]
[1769723775637,3.54806212,2818.5,2817.9,0.002]
[1769723777544,3.54806212,2818.5,2817.9,11.81363162]
[1769723778542,3.54806212,2818.5,2817.9,0.002]
[1769723779143,4.29106212,2818.5,2817.9,0.002]
[1769723782064,15.8915011,2818.5,2817.9,0.002]
[1769723782364,1.67794977,2818.4,2817.9,0.002]
[1769723784417,0.88705957,2818.3,2817.9,0.002]
[1769723784630,12.48749855,2818.3,2817.9,0.002]
[1769723785146,0.001,2818.2,2817.9,0.002]
[1769723789759,0.001,2818.2,2817.9,0.001]
[1769723790058,12.05773412,2818.2,2817.9,0.001]
[1769723790229,12.05773412,2818.2,2817.7,3.04e-06]
[1769723791053,0.35592383,2818.2,2817.7,3.04e-06]
[1769723791961,0.88712252,2818.1,2817.7,3.04e-06]
[1769723793256,1.24303881,2818.2,2817.7,11.63278219]
[1769723793464,1.63111498,2818.2,2817.7,11.63278219]
[1769723795053,1.63111498,2818.2,2817.7,3.04e-06]
[1769723795256,1.63111498,2818.2,2817.6,0.002]
[1769723795257,13.10628507,2818.2,2817.6,0.002]
[1769723796759,13.10628507,2818.2,2817.9,0.001]
[1769723797055,13.10628507,2818.2,2817.6,0.00100303]
[1769723797056,13.14062997,2818.1,2817.6,0.00100303]
[1769723797457,1.66545988,2818.1,2817.6,0.00100303]
[1769723800061,0.887154,2818.0,2817.6,0.00100303]
[1769723808268,0.001,2817.9,2817.6,0.00100303]
[1769723809572,0.61121708,2817.9,2817.6,0.00100303]
[1769723810349,0.88721697,2817.8,2817.6,0.00100303]
[1769723814077,1.49842491,2817.9,2817.6,0.00100303]
[1769723816381,2.24142491,2817.9,2817.6,0.00100303]
[1769723816585,0.57900716,2817.8,2817.6,0.00100303]
[1769723818187,0.57900716,2817.8,2817.3,0.002]
[1769723818879,0.88724846,2817.7,2817.3,0.002]
[1769723819851,0.88824846,2817.7,2817.3,0.002]
[1769723820284,0.88824846,2817.7,2817.3,0.001]
[1769723820486,0.50162495,2817.6,2817.3,0.001]
[1769723821058,0.88731144,2817.5,2817.3,0.001]
[1769723821378,1.38892743,2817.6,2817.3,0.001]
[1769723822088,1.38892743,2817.6,2817.0,0.002]
[1769723822260,0.49389213,2817.5,2817.0,0.002]
[1769723822689,0.49389213,2817.5,2817.0,11.2482168]
[1769723822889,1.38892743,2817.6,2817.0,11.2482168]
[1769723824270,0.88730248,2817.6,2817.0,11.2482168]
[1769723827898,3.5500858,2817.7,2817.0,11.2482168]
[1769723831399,3.5500858,2817.7,2817.2,0.002]
[1769723831894,0.001,2817.4,2817.2,0.002]
[1769723839199,0.001,2817.4,2817.2,0.001]
[1769723839500,0.001,2817.4,2817.2,3.04e-06]
[1769723841994,0.001,2817.4,2817.0,0.002]
[1769723842196,1.16077422,2817.3,2817.0,0.002]
[1769723843214,2.04814865,2817.3,2817.2,0.001]
[1769723845118,2.04814865,2817.3,2817.0,0.00100202]
[1769723845531,13.53217812,2817.3,2817.0,0.00100202]
[1769723846502,2.04814865,2817.3,2817.0,0.00100202]
[1769723846705,0.55985399,2817.2,2817.0,0.00100202]
[1769723847304,0.88743743,2817.1,2817.0,0.00100202]
[1769723854909,0.88743743,2817.1,2816.8,0.002]
[1769723855116,1.63143743,2817.1,2816.8,0.002]
[1769723855629,0.744,2817.1,2816.8,0.002]
[1769723855823,0.744,2817.1,2816.8,10.78961203]
[1769723859168,0.88827143,2817.7,2816.9,10.78761203]
[1769723859441,1.63325746,2817.7,2816.9,10.78761203]
[1769723861751,0.002,2817.7,2817.1,10.78761203]
[1769723862034,1.08778091,2817.9,2817.2,10.78761203]
[1769723862239,1.08778091,2817.9,2817.0,0.88746893]
[1769723862240,1.08778091,2817.9,2817.4,10.78761203]
[1769723865140,0.84742354,2817.9,2817.4,11.67495276]
[1769723865349,0.001,2819.0,2817.6,10.78761203]
[1769723865646,0.001,2819.0,2818.6,0.18516399]
[1769723867441,0.001,2819.0,2818.6,1.07212796]
[1769723867836,0.001,2819.0,2818.6,0.18516399]
[1769723871060,0.001,2819.0,2818.5,11.67460442]
[1769723874016,0.001,2819.0,2818.5,10.78761203]
[1769723874857,0.001,2819.0,2818.4,0.88700435]
[1769723875326,0.001,2819.0,2818.4,2.40928904]
[1769723876125,0.001,2819.0,2818.5,0.88699464]
[1769723877058,0.001,2819.0,2818.4,2.40928842]
[1769723878255,0.001,2818.8,2818.4,2.40928842]
[1769723879759,0.001,2818.8,2818.4,14.28303387]
[1769723879935,0.001,2818.8,2818.5,1.78312643]
[1769723880341,0.001,2818.8,2818.5,2.67011463]
[1769723885151,0.001,2818.8,2818.5,1.78312643]
[1769723885327,0.001,2818.8,2818.5,2.67012302]
[1769723886125,0.001,2818.8,2818.5,14.54386847]
[1769723889566,0.001,2818.6,2818.5,14.54386847]
[1769723889863,0.001,2818.8,2818.5,14.54386847]
[1769723890289,0.001,2819.0,2818.6,13.35077431]
[1769723892296,0.001,2819.0,2818.6,14.23771227]
[1769723899304,0.001,2819.3,2818.7,11.87374545]
[1769723900030,0.001,2819.3,2818.6,2.36396682]
[1769723901774,0.001,2818.8,2818.6,2.36396682]
[1769723902100,0.001,2818.8,2818.7,2.66550131]
[1769723905121,0.001,2819.3,2818.7,14.53924676]
[1769723905289,0.001,2819.3,2818.7,12.76067914]
[1769723906982,0.001,2819.3,2818.9,11.06332494]
[1769723907381,0.001,2819.3,2819.0,0.8868393]
[1769723907586,0.001,2819.3,2818.9,11.95018213]
[1769723908006,0.001,2819.3,2818.8,7.07096777]
[1769723908718,0.001,2819.3,2818.8,8.22303243]
[1769723909725,0.001,2819.3,2818.8,2.0389442]
[1769723911990,0.001,2819.3,2818.8,13.10226914]
[1769723913924,0.001,2819.3,2818.9,0.002]
[1769723914130,0.001,2819.1,2818.9,0.002]
[1769723914328,0.001,2819.1,2818.9,1.6671955]
[1769723914930,0.001,2819.1,2818.9,0.002]
[1769723930671,0.001,2819.1,2818.6,0.002]
[1769723930945,11.03827051,2819.1,2818.1,0.88709716]
[1769723931134,11.03827051,2819.1,2818.0,10.80664732]
[1769723931462,12.83490638,2819.1,2818.2,11.6937208]
[1769723932727,0.8868393,2819.0,2818.2,10.80664732]
[1769723932933,11.92410981,2819.0,2818.2,10.80664732]
[1769723933262,11.92410981,2819.0,2818.0,11.69377899]
[1769723933560,12.7641808,2818.9,2818.1,11.69376653]
[1769723933727,1.72691029,2818.9,2818.2,11.69373378]
[1769723933931,0.8868393,2819.0,2818.2,11.69373378]
[1769723934134,0.8868393,2819.0,2818.3,11.69561914]
[1769723934764,11.9242042,2818.7,2817.9,0.88716437]
[1769723935060,11.9242042,2818.7,2818.0,0.88897182]
[1769723935562,11.9242042,2818.7,2818.0,1.77611759]
[1769723935766,14.09033215,2818.7,2818.0,1.77611759]
[1769723937572,14.09033215,2818.7,2818.2,0.002]
[1769723941267,3.05306164,2818.7,2818.2,0.002]
[1769723942250,3.05306164,2818.7,2818.2,0.89097182]
[1769723943588,2.16612795,2818.7,2818.2,0.89097182]
[1769723943754,0.88787563,2818.9,2818.2,12.1705906]
[1769723944170,0.001,2818.9,2818.2,12.1705906]
[1769723944384,0.001,2818.9,2818.4,11.27961878]
[1769723948995,0.001,2818.9,2818.5,0.88897182]
[1769723949668,0.001,2818.7,2818.5,0.88897182]
[1769723957313,0.001,2818.7,2818.4,11.27961878]
[1769723957468,0.001,2818.7,2818.5,0.88897182]
[1769723962798,0.001,2818.7,2818.4,11.27961878]
[1769723964443,0.001,2818.7,2818.2,11.28161878]
[1769723964592,0.001,2818.7,2818.4,0.88897182]
[1769723968529,11.44870708,2818.7,2818.4,0.88897182]
[1769723970332,0.001,2818.7,2818.4,0.88897182]
[1769723970539,6.08794918,2819.1,2818.5,12.75711381]
[1769723970540,0.001,2819.1,2818.5,12.75711381]
[1769723971210,0.001,2819.3,2818.6,11.87014199]
[1769723971534,0.88752843,2820.0,2818.8,11.87014199]
[1769723971734,0.88752794,2820.0,2818.8,11.87014199]
[1769723973117,0.88752794,2820.0,2819.0,11.87014199]
[1769723975625,0.88752794,2820.0,2819.1,12.48763925]
[1769723975829,12.06565594,2820.0,2819.2,1.60348706]
[1769723976715,12.06565594,2820.0,2819.3,0.88497182]
[1769723977541,12.06565594,2820.0,2819.3,1.77169261]
[1769723978745,11.179128,2820.0,2819.3,1.77169261]
[1769723979228,0.001,2820.0,2819.3,13.37252402]
[1769723979431,0.001,2820.0,2819.4,1.85231038]
[1769723979767,0.001,2820.0,2819.5,0.88668203]
[1769723980287,0.001,2820.0,2819.6,0.88497182]
[1769723980553,0.001,2820.0,2819.5,0.88497182]
[1769723981213,11.178128,2819.9,2819.5,0.88497182]
[1769723982651,12.06470992,2819.9,2819.5,0.88497182]
[1769723982850,14.28237468,2819.9,2819.5,0.88497182]
[1769723984153,14.28237468,2819.9,2819.5,0.88697182]
[1769723984352,0.001,2819.8,2819.5,0.88697182]
[1769723987335,0.001,2819.8,2819.6,0.88497182]
[1769723992861,0.001,2819.8,2819.5,0.002]
[1769723993067,0.001,2819.8,2819.6,0.88497182]
[1769723999189,0.001,2819.8,2819.6,0.64461445]
[1769723999343,0.001,2819.8,2817.6,7.7015876]
[1769723999344,10.94530785,2819.2,2817.7,11.18913223]
[1769723999547,10.94530785,2819.6,2818.6,0.06787896]
[1769723999844,0.743,2819.6,2818.9,11.12125327]
[1769724000252,0.743,2819.7,2818.9,13.12702623]
[1769724000478,10.94630785,2819.8,2819.4,11.18913223]
[1769724000479,0.001,2819.8,2819.4,11.18913223]
[1769724000770,0.001,2820.0,2819.6,11.12125327]
[1769724000948,0.001,2820.0,2819.6,12.24016649]
[1769724001678,0.001,2820.0,2819.0,0.06787896]
[1769724001852,11.8328365,2820.0,2819.0,11.18913223]
[1769724002057,11.8328365,2820.0,2819.0,11.12125327]
[1769724002577,11.8328365,2820.0,2819.1,12.00806111]
[1769724002951,0.001,2820.0,2819.1,12.07594007]
[1769724003165,0.001,2820.0,2819.5,11.12125327]
[1769724003345,0.23363334,2820.1,2819.7,11.12125327]
[1769724003545,10.94530785,2821.0,2820.0,11.12125327]
[1769724003772,1.44900458,2820.9,2820.0,12.84971843]
[1769724004112,12.57447849,2821.2,2820.4,11.12125327]
[1769724004502,10.94530785,2821.4,2820.4,12.00763846]
[1769724004722,0.32850859,2822.2,2821.0,11.12125327]
[1769724004990,0.7156948,2822.2,2821.4,11.12125327]
[1769724005151,1.60153581,2822.2,2821.4,11.12125327]
[1769724006412,1.60153581,2822.2,2820.9,0.88624197]
[1769724006413,0.88599071,2821.7,2820.9,0.88624197]
[1769724006569,10.94530785,2821.7,2820.9,12.00749524]
[1769724006776,1.18312882,2821.6,2820.9,12.00749524]
[1769724006987,0.88598039,2821.8,2820.9,12.00749524]
[1769724007394,0.88598039,2821.8,2820.9,11.12125327]
[1769724007395,10.94530785,2821.7,2820.9,11.12125327]
[1769724008198,0.001,2821.0,2820.9,11.12125327]
[1769724013077,0.001,2821.0,2820.7,11.12125327]
[1769724013405,0.001,2821.0,2820.5,11.12125327]
[1769724013580,10.94630785,2821.0,2820.1,11.12125327]
[1769724013775,12.65832842,2820.9,2819.9,11.12125327]
[1769724013976,12.65832842,2820.9,2820.0,0.88650855]
[1769724014377,12.65832842,2820.9,2819.9,12.00778248]
[1769724014601,12.65832842,2820.9,2819.9,12.00778571]
[1769724014805,10.94530785,2820.7,2819.9,12.00778571]
[1769724015177,6.18389786,2820.5,2819.5,12.00791065]
[1769724015408,0.8863269,2820.7,2819.9,12.00779152]
[1769724015614,1.9358976,2820.7,2819.9,12.00779152]
[1769724015812,0.8863269,2820.7,2819.9,12.00779152]
[1769724018630,0.001,2821.0,2819.9,12.00779152]
[1769724018806,0.001,2821.0,2820.1,11.12125327]
[1769724019602,10.94630785,2821.0,2819.9,12.00779152]
[1769724019816,10.94530785,2820.8,2819.9,12.00779152]
[1769724020831,0.88630481,2820.7,2819.9,12.00780584]
[1769724021930,0.88630481,2820.7,2819.8,12.00783131]
[1769724022714,0.88630481,2820.7,2819.9,0.06787896]
[1769724022934,0.88630481,2820.7,2820.0,11.12125327]
[1769724023233,1.47436749,2820.7,2820.0,11.12125327]
[1769724025225,0.58806268,2820.7,2820.1,12.00774665]
[1769724025720,0.88721237,2821.0,2820.3,10.97686124]
[1769724026538,0.001,2821.0,2820.3,10.97686124]
[1769724027740,0.001,2821.0,2820.3,11.86329105]
[1769724028431,0.001,2821.0,2820.3,10.97686124]
[1769724028930,0.001,2821.0,2820.3,11.86328977]
[1769724029737,0.001,2821.0,2820.3,10.97686124]
[1769724030129,0.001,2821.0,2820.3,11.86328914]
[1769724030543,0.001,2821.0,2820.3,10.97686124]
[1769724031047,0.001,2821.0,2820.3,11.86329097]
[1769724031223,0.001,2821.0,2820.3,10.97686124]
[1769724031424,1.43493632,2821.0,2820.3,10.97686124]
[1769724031743,0.001,2820.8,2820.3,10.97686124]
[1769724031941,0.001,2820.8,2820.0,3.54601433]
[1769724032248,0.001,2820.8,2820.2,11.863303]
[1769724032429,0.001,2820.8,2820.4,10.97686124]
[1769724032748,0.001,2820.8,2820.4,12.16318972]
[1769724033332,0.001,2820.8,2820.2,0.88644042]
[1769724034139,0.001,2820.8,2820.1,12.06037116]
[1769724035051,0.001,2820.8,2820.2,11.24175674]
[1769724035352,0.001,2820.8,2820.5,11.17387778]
[1769724036142,0.001,2820.8,2820.5,12.06024415]
[1769724036852,0.001,2820.8,2820.5,12.06022902]
[1769724037634,0.001,2820.8,2820.5,13.62759847]
[1769724038351,0.001,2820.8,2820.5,12.74124723]
[1769724038550,0.001,2820.8,2820.5,13.62760836]
[1769724039061,0.001,2820.8,2820.5,12.74124723]
[1769724039258,0.001,2820.8,2820.5,13.62761326]
[1769724039561,0.001,2820.8,2820.6,1.00833167]
[1769724042275,0.001,2820.8,2820.5,1.56736945]
[1769724042560,0.001,2820.8,2820.3,11.17387778]
[1769724042871,0.001,2820.8,2820.3,12.06030715]
[1769724043076,0.001,2820.6,2820.3,12.06030715]
[1769724043478,0.001,2820.6,2820.3,0.88642937]
[1769724043685,0.001,2820.6,2820.3,0.88642486]
[1769724043897,0.001,2820.6,2820.2,0.88644197]
[1769724044061,0.001,2820.6,2820.3,1.56062644]
[1769724046473,0.001,2820.6,2820.3,2.44705629]
[1769724046978,11.00050208,2820.6,2819.9,0.88655228]
[1769724047447,11.00050208,2820.6,2819.8,0.88656297]
[1769724047780,11.00050208,2820.6,2819.6,0.88663387]
[1769724047951,11.00050208,2820.6,2819.5,11.17387778]
[1769724047952,10.99950208,2820.4,2819.5,12.06053554]
[1769724048345,10.99950208,2820.4,2819.5,12.06054588]
[1769724050479,10.99950208,2820.2,2819.3,12.06062271]
[1769724050692,13.1994025,2820.2,2819.3,12.06062271]
[1769724050987,13.1994025,2820.2,2819.4,0.06787896]
[1769724051385,13.1994025,2820.2,2819.4,11.24175674]
[1769724051886,13.1994025,2820.2,2819.6,0.06787896]
[1769724052058,2.19990042,2820.2,2819.6,0.06787896]
[1769724052263,2.19990042,2820.2,2819.4,11.24175674]
[1769724052464,2.19990042,2820.2,2819.4,12.81609278]
[1769724053300,3.08636465,2820.2,2819.4,2.52890731]
[1769724053504,10.99950208,2820.1,2819.2,3.6148708]
[1769724053670,10.99950208,2820.1,2819.4,0.88671005]
[1769724054680,10.99950208,2820.1,2819.6,0.002]
[1769724056380,0.001,2820.2,2819.6,0.002]
[1769724057170,0.88746529,2820.2,2819.6,0.002]
[1769724057371,2.34366402,2820.2,2819.6,0.002]
[1769724058393,12.47254521,2820.2,2819.6,0.002]
[1769724060468,1.45719873,2820.2,2819.6,10.86060973]
[1769724060675,0.001,2820.2,2819.6,10.86060973]
[1769724061300,0.001,2820.2,2819.6,0.002]
[1769724065378,0.001,2820.2,2819.6,10.86060973]
[1769724065579,0.001,2820.2,2819.7,10.85860973]
[1769724066090,0.001,2820.2,2819.7,11.74522587]
[1769724067106,0.001,2820.2,2819.7,11.74722587]
[1769724068190,0.88642244,2820.4,2819.8,10.85860973]
[1769724069589,10.12888119,2820.5,2819.7,0.88860133]
[1769724070507,10.12888119,2820.5,2819.7,0.002]
[1769724070680,10.12888119,2820.5,2819.7,0.88861771]
[1769724071210,10.12888119,2820.3,2819.7,0.88861771]
[1769724071729,11.01531714,2820.3,2819.7,0.002]
[1769724071911,10.12888119,2820.2,2819.7,0.002]
[1769724072479,2.51766937,2820.4,2819.7,0.002]
[1769724072480,12.64655056,2820.4,2819.7,0.002]
[1769724072783,1.61920231,2820.3,2819.7,0.002]
[1769724073724,11.7480835,2820.3,2819.7,0.002]
[1769724075310,12.63452582,2820.3,2819.7,0.002]
[1769724079035,12.63452582,2820.3,2819.8,0.002]
[1769724079211,0.001,2820.1,2819.8,0.002]
[1769724082224,1.16624801,2820.1,2819.8,0.002]
[1769724085244,12.18164478,2820.1,2819.6,0.002]
[1769724085428,0.001,2820.6,2820.0,9.31453924]
[1769724085740,2.78645032,2820.6,2820.0,9.31453924]
[1769724087419,2.78645032,2820.6,2820.2,9.31453924]
[1769724087619,2.78645032,2820.6,2820.2,10.6892477]
[1769724090841,0.001,2820.6,2820.2,11.57570544]
[1769724091212,0.001,2820.6,2820.2,10.6892477]
[1769724091928,0.001,2820.4,2820.2,10.6892477]
[1769724092338,0.001,2820.4,2820.2,11.57570421]
[1769724092532,0.001,2820.4,2820.3,1.15757042]
[1769724093213,0.001,2820.4,2820.1,0.88647416]
[1769724095837,0.001,2820.4,2820.0,0.002]
[1769724096044,0.001,2820.4,2820.0,10.07030022]
[1769724098013,0.001,2820.4,2820.0,0.88852482]
[1769724098213,0.001,2820.4,2820.0,10.07030022]
[1769724098425,0.001,2820.4,2820.1,1.36164893]
[1769724101550,0.001,2820.4,2820.2,0.88646195]
[1769724101760,0.001,2820.4,2820.1,1.36164893]
[1769724101761,0.001,2820.4,2820.1,2.24811774]
[1769724101946,0.001,2820.4,2820.1,11.42989314]
[1769724103932,0.001,2820.4,2820.3,0.002]
[1769724107180,6.18271876,2821.2,2820.3,0.002]
[1769724107181,0.88605582,2821.5,2820.4,9.1817754]
[1769724107341,10.37634621,2821.6,2820.8,9.1817754]
[1769724107542,0.001,2821.5,2820.8,9.1817754]
[1769724108044,9.49130557,2821.5,2820.8,0.88625401]
[1769724108973,0.001,2821.5,2820.8,11.42934887]
[1769724109139,0.001,2821.5,2821.0,9.1817754]
[1769724110753,0.001,2821.5,2821.1,0.88617914]
[1769724111848,0.001,2821.5,2821.1,10.06795454]
[1769724112371,0.88588492,2822.1,2821.1,10.1358335]
[1769724112576,0.001,2821.9,2821.3,9.1817754]
[1769724112946,0.001,2821.8,2821.4,0.88608492]
[1769724113155,0.001,2822.0,2821.4,0.88608492]
[1769724113352,0.001,2822.0,2821.4,11.56589779]
[1769724113576,0.001,2822.0,2821.5,9.1817754]
[1769724114297,0.001,2822.0,2821.4,2.38412239]
[1769724114298,0.001,2822.0,2821.4,1.49803747]
[1769724114590,9.49130557,2822.0,2821.2,0.88612875]
[1769724114789,9.49130557,2822.0,2821.2,0.88614471]
[1769724114977,9.49030557,2821.8,2821.1,0.88617914]
[1769724117196,0.001,2821.7,2821.0,3.54472667]
[1769724117592,8.80532345,2821.7,2821.0,0.88621056]
[1769724118390,0.001,2821.6,2821.0,0.88621056]
[1769724119594,0.001,2821.6,2820.9,0.88624197]
[1769724119922,0.001,2821.5,2820.9,9.97249848]
[1769724120106,0.001,2821.7,2821.0,10.50626604]
[1769724120693,0.88699227,2821.7,2821.0,10.50626604]
[1769724120895,0.88699227,2821.7,2821.0,9.01837755]
[1769724121447,0.001,2821.7,2821.0,9.01837755]
[1769724122724,0.88699073,2821.7,2821.1,0.88617914]
[1769724124788,0.001,2821.7,2821.0,3.5448376]
[1769724124994,0.001,2821.6,2821.0,12.56321515]
[1769724125196,0.001,2821.6,2821.0,14.04428967]
[1769724128211,8.80532345,2821.6,2821.0,2.36728397]
[1769724128414,8.80532345,2821.6,2821.0,0.88620945]
[1769724128638,0.001,2821.6,2821.0,0.88620945]
[1769724128810,0.001,2821.5,2821.0,0.88620945]
[1769724130236,0.001,2821.4,2820.9,9.90461952]
[1769724130440,0.001,2821.4,2821.0,1.48109592]
[1769724132322,0.001,2821.4,2821.0,2.367282]
[1769724133271,0.001,2821.4,2821.0,11.38565955]
[1769724133426,0.001,2821.4,2821.0,2.367282]
[1769724133630,0.001,2821.4,2821.0,0.88618608]
[1769724136471,0.001,2821.4,2820.9,0.88622088]
[1769724137325,8.80532345,2821.5,2820.9,0.88622088]
[1769724137532,0.001,2821.4,2820.7,0.88630481]
[1769724137741,0.001,2821.4,2820.7,2.31229988]
[1769724138732,0.001,2821.4,2820.7,11.39855639]
[1769724139152,0.001,2821.4,2820.7,11.33067743]
[1769724140473,0.001,2821.4,2820.9,0.002]
[1769724142885,8.80532345,2821.5,2820.9,0.002]
[1769724143035,0.001,2821.4,2820.9,0.002]
[1769724143860,8.80532345,2821.4,2820.9,0.002]
[1769724144554,8.80532345,2821.4,2820.6,0.002]
[1769724146692,9.40923279,2821.3,2820.6,0.88832917]
[1769724146979,0.88611632,2821.3,2820.6,8.89270128]
[1769724147287,0.001,2821.2,2820.6,8.96058024]
[1769724147746,0.88611632,2821.3,2820.6,8.96058024]
[1769724147747,0.001,2821.1,2820.6,8.96058024]
[1769724148174,0.001,2821.0,2820.6,8.96058024]
[1769724148482,0.001,2821.2,2820.6,8.96058024]
[1769724148854,0.001,2821.1,2820.6,9.8468976]
[1769724149051,9.41020139,2821.4,2820.6,9.8468976]
[1769724152978,9.41020139,2821.4,2820.8,0.002]
[1769724153196,0.001,2821.2,2820.8,0.002]
[1769724153800,0.001,2821.1,2820.8,0.002]
[1769724154157,0.001,2821.0,2820.8,0.002]
[1769724158604,8.14384716,2821.0,2820.8,0.002]
[1769724158898,0.90300548,2820.9,2820.6,0.002]
[1769724159066,8.14384716,2821.0,2820.6,0.002]
[1769724159695,9.03006464,2821.0,2820.6,0.002]
[1769724165582,9.03006464,2821.0,2820.8,0.002]
[1769724165781,9.03006464,2821.0,2820.6,0.002]
[1769724165981,1.25747944,2820.9,2820.6,0.002]
[1769724166506,0.001,2820.8,2820.6,0.002]
[1769724167513,2.14373562,2820.9,2820.6,0.002]
[1769724167684,0.001,2820.8,2820.6,0.002]
[1769724172814,2.14373562,2820.9,2820.6,0.002]
[1769724173013,1.26005688,2820.8,2820.6,0.002]
[1769724178223,0.001,2820.7,2820.6,0.002]
[1769724181124,0.001,2820.7,2820.5,0.002]
[1769724181421,0.001,2820.6,2820.5,0.002]
[1769724181731,0.001,2820.9,2820.5,0.002]
[1769724181928,8.08159548,2820.9,2820.5,0.002]
[1769724182241,8.08159548,2820.9,2820.3,0.00100101]
[1769724183342,0.88627339,2820.8,2820.3,0.00100101]
[1769724183711,0.001,2820.7,2820.3,0.00100101]
[1769724184248,0.001,2820.6,2820.3,0.00100101]
[1769724184645,0.001,2820.5,2820.3,0.00100101]
[1769724184966,0.001,2820.7,2820.3,0.00100101]
[1769724185249,1.25229625,2820.7,2820.3,0.00100101]
[1769724185445,0.001,2820.6,2820.3,0.00100101]
[1769724185825,0.001,2820.5,2820.3,0.00100101]
[1769724188948,0.001,2820.5,2820.0,0.88850065]
[1769724189657,0.001,2820.5,2820.3,0.002]
[1769724197482,8.96692566,2820.7,2820.3,0.002]
[1769724197785,1.25220337,2820.6,2820.3,0.002]
[1769724198676,0.001,2820.6,2820.3,0.002]
[1769724202294,0.001,2820.4,2820.3,0.002]
[1769724203311,8.96686887,2820.9,2820.4,8.61506596]
[1769724203312,3.54498885,2820.9,2820.4,8.61506596]
[1769724203487,0.88617914,2821.1,2820.4,8.61506596]
[1769724204682,8.96677462,2821.1,2820.3,0.002]
[1769724204999,10.10232486,2821.1,2820.3,0.002]
[1769724205182,8.08059548,2821.0,2820.3,0.002]
[1769724207310,0.88624197,2820.9,2820.3,0.002]
[1769724208141,8.88026486,2820.9,2820.3,0.002]